[Event "Israeli Open Championship 2019"]
[Site "Jerusalem"]
[Date "2019.12.17"]
[Round "5.16"]
[White "Zak, Arad"]
[Black "Freiman, Mark"]
[Result "1-0"]
[ECO "C89"]
[WhiteElo "2076"]
[BlackElo "1724"]
[Annotator "NA"]
[PlyCount "105"]
[EventDate "2019.12.12"]
[EventType "swiss"]
[EventCountry "ISR"]
[SourceTitle "playchess.com"]
[Source "ChessBase"]
[SourceQuality "1"]
[TimeControl "5400+30"]

1. e4 {[%emt 0:03:33]} e5 {[%emt 0:00:00]} 2. Nf3 {[%emt 0:00:10]} Nc6 {[%emt 0:00:00]} 3. Bb5 {[%emt 0:00:43]} a6 {[%emt 0:00:00]} 4. Ba4 {[%emt 0:00:21]} Nf6 {[%emt 0:00:00]} 5. O-O {[%emt 0:00:11]} Be7 {[%emt 0:00:19]} 6. Re1 {[%emt 0:00:29]} b5 {[%emt 0:00:11]} 7. Bb3 {[%emt 0:00:04]} O-O {[%emt 0:00:15]} 8. c3 {[%emt 0:00:13]} d5 {[%emt 0:00:16]} 9. exd5 {[%emt 0:00:29]} Nxd5 {[%emt 0:00:21]} 10. Nxe5 {[%emt 0:00:07]} Nxe5 {[%emt 0:00:02]} 11. Rxe5 {[%emt 0:00:06]} c6 {[%emt 0:00:15]} 12. d4 {[%emt 0:00:14]} Bd6 {[%emt 0:00:22]} 13. Re1 {[%emt 0:00:23]} Qh4 {[%emt 0:00:29]} 14. g3 {[%emt 0:00:09]} Qh3 {[%emt 0:00:17]} 15. Be3 {[%emt 0:05:15]} Bg4 {[%emt 0:02:03]} 16. Qd3 {[%emt 0:00:43]} Rae8 {[%emt 0:00:56]} 17. Qf1 {[%emt 0:01:00]} Qh5 {[%emt 0:00:16]} 18. Nd2 {[%emt 0:03:02]} Re6 {[%emt 0:08:19]} 19. a4 {[%emt 0:06:59]} Bh3 {[%emt 0:12:06]} ({Of course not} 19... Nxe3 $6 20. Rxe3 Rxe3 21. fxe3 $16) 20. Qd3 {[%emt 0:23:38]} (20. Bd1 $5 {[%cal Rd1h5]} Qf5 21. Qe2 $11) 20... Bf5 {[%emt 0:00:23]} 21. Bd1 {[%emt 0:03:17]} Qh3 {[%emt 0:16:34]} 22. Qf1 {[%emt 0:02:31]} Rfe8 {[%emt 0:01:56]} 23. Qxh3 {[%emt 0:03:59]} Bxh3 {[%emt 0:00:04]} 24. axb5 {[%emt 0:01:02]} axb5 {[%emt 0:00:27]} 25. Bb3 {[%emt 0:01:28]} f5 $2 {[%emt 0:03:42]} (25... h6 $16) 26. Nf3 {[%emt 0:08:16]} h6 $2 {[%emt 0:08:44]} (26... f4 {might work better.}) 27. Bd2 {[%emt 0:00:55]} g5 {[%emt 0:05:55]} 28. Rxe6 {[%emt 0:02:01]} Rxe6 {[%emt 0:00:18]} 29. Re1 {[%emt 0:04:05]} Rxe1+ {[%emt 0:04:46]} 30. Nxe1 {[%emt 0:00:09]} Kg7 {[%emt 0:00:41] [#]} 31. f3 $1 {[%emt 0:02:06]} f4 {[%emt 0:03:12] [#]} (31... Nb6 {keeps fighting.} 32. Nd3 Nc4) 32. Bxd5 $1 {[%emt 0:05:04]} cxd5 {[%emt 0:00:02] [#]} 33. g4 $1 {[%emt 0:03:36]} Kg6 {[%emt 0:00:40]} 34. Nd3 {[%emt 0:00:21]} h5 {[%emt 0:00:21]} 35. Nf2 {[%emt 0:00:23]} hxg4 {[%emt 0:00:10]} 36. fxg4 {[%emt 0:00:12]} Bxg4 {[%emt 0:00:32]} 37. Nxg4 {[%emt 0:00:16]} Kf5 {[%emt 0:00:07]} 38. h3 {[%emt 0:02:12]} Ke4 {[%emt 0:01:16]} 39. Kf2 {[%emt 0:01:09]} Kd3 {[%emt 0:00:45]} 40. Be1 {[%emt 0:00:24]} Kc2 {[%emt 0:01:03]} 41. b4 {[%emt 0:00:18]} Kd3 {[%emt 0:00:34]} 42. Nf6 {[%emt 0:01:47]} Kc4 {[%emt 0:00:19]} 43. Kf3 {[%emt 0:00:21]} Be7 {[%emt 0:00:30]} 44. Ng4 {[%emt 0:00:34]} Kd3 {[%emt 0:02:45]} 45. Ne5+ {[%emt 0:01:00]} Kc2 {[%emt 0:00:06]} 46. Nc6 {[%emt 0:01:18]} Bf6 $18 {[%emt 0:00:41]} 47. Ke2 {[%emt 0:00:14]} Kb3 {[%emt 0:02:33]} 48. Na7 {[%emt 0:00:26]} Kc4 {[%emt 0:00:27]} 49. Nc6 {[%emt 0:00:26]} Kb3 {[%emt 0:00:23]} 50. Kd3 {[%emt 0:00:20]} Ka4 {[%emt 0:03:02]} 51. Kc2 {[%emt 0:00:47]} g4 {[%emt 0:04:50]} 52. hxg4 {[%emt 0:00:15]} Bg5 {[%emt 0:00:01]} 53. Ne5 {[%emt 0:17:29]} 1-0

[Event "Israeli Open Championship 2019"]
[Site "Jerusalem"]
[Date "2019.12.17"]
[Round "5.17"]
[White "Nissim, Yonatan"]
[Black "Elsner, Yair"]
[Result "1-0"]
[ECO "E84"]
[WhiteElo "2040"]
[BlackElo "1585"]
[Annotator "NA"]
[PlyCount "43"]
[EventDate "2019.12.12"]
[EventType "swiss"]
[EventCountry "ISR"]
[SourceTitle "playchess.com"]
[Source "ChessBase"]
[SourceQuality "1"]
[TimeControl "5400+30"]

1. d4 {[%emt 0:01:07]} Nf6 {[%emt 0:00:00]} 2. c4 {[%emt 0:00:08]} g6 {[%emt 0:00:00]} 3. f3 {[%emt 0:00:37]} Bg7 {[%emt 0:00:00]} 4. e4 {[%emt 0:00:22]} d6 {[%emt 0:00:00]} 5. Nc3 {[%emt 0:00:04]} O-O {[%emt 0:00:04]} 6. Be3 {[%emt 0:00:08]} Nc6 {[%emt 0:00:16]} 7. Qd2 {[%emt 0:02:49]} a6 {[%emt 0:00:27]} 8. Nge2 {[%emt 0:01:20]} Rb8 {[%emt 0:00:43]} 9. Nc1 {[%emt 0:01:37]} e5 {[%emt 0:00:14]} 10. d5 {[%emt 0:00:53]} Nd4 {[%emt 0:00:14]} 11. N1e2 {[%emt 0:07:56]} c5 {[%emt 0:00:35]} 12. dxc6 {[%emt 0:00:16]} Nxc6 {[%emt 0:00:15]} 13. Rd1 {[%emt 0:05:50]} Qa5 {[%emt 0:03:05] E84: King's Indian: Sämisch Panno: 7 Nge2 a6 8 Qd2 Rb8} (13... Be6 14. Nc1 Nd4 15. Nb3 Nxb3 16. axb3 b5 17. Qxd6 Qxd6 18. Rxd6 bxc4 19. Bxc4 Bxc4 20. bxc4 Rxb2 21. O-O {½-½ (41) Van der Sterren,P (2605)-Zapata,A (2565) Wijk aan Zee 1995}) 14. Nc1 {[%emt 0:03:03]} Ne8 $146 {[%emt 0:09:23]} ({Predecessor:} 14... Rd8 15. Nb3 Qb4 16. Be2 b5 17. cxb5 axb5 18. O-O Be6 19. Nc1 d5 20. a3 Qa5 21. Nb3 {0-1 (58) Anelli,G-Oppici,G Italy 1988}) 15. Nb3 {[%emt 0:02:01]} Qb4 {[%emt 0:05:10]} ({Better is} 15... Qd8 $1 $14) 16. Qc2 {[%emt 0:17:35]} Na5 {[%emt 0:02:40] [#]} 17. Nd2 $1 {[%emt 0:04:00]} Nc6 {[%emt 0:03:17]} 18. Nd5 {[%emt 0:07:22]} Qa5 {[%emt 0:00:54]} 19. Bb6 {[%emt 0:01:48]} Nd4 {[%emt 0:02:38]} 20. Qb1 {[%emt 0:01:31]} Qa4 {[%emt 0:01:43] [#]} 21. Ba7 $1 {[%emt 0:00:53]} Nc2+ $18 {[%emt 0:14:40]} (21... Qd7 {keeps fighting.} 22. Bxb8 Nc6 23. Bxd6 Qxd6) 22. Kf2 {[%emt 0:00:42]} 1-0

[Event "Israeli Open Championship 2019"]
[Site "Jerusalem"]
[Date "2019.12.17"]
[Round "5.18"]
[White "Sobel, Alon"]
[Black "Tsirilman, Guy"]
[Result "0-1"]
[ECO "A68"]
[WhiteElo "1804"]
[BlackElo "1975"]
[Annotator "NA"]
[PlyCount "100"]
[EventDate "2019.12.12"]
[EventType "swiss"]
[EventCountry "ISR"]
[SourceTitle "playchess.com"]
[Source "ChessBase"]
[SourceQuality "1"]
[TimeControl "5400+30"]

1. d4 {[%emt 0:00:00]} Nf6 {[%emt 0:00:09]} 2. c4 {[%emt 0:00:00]} g6 {[%emt 0:00:34]} 3. Nc3 {[%emt 0:00:00]} Bg7 {[%emt 0:00:34]} 4. e4 {[%emt 0:00:16]} d6 {[%emt 0:00:25]} 5. f4 {[%emt 0:00:11]} O-O {[%emt 0:00:40]} 6. Nf3 {[%emt 0:00:05]} c5 {[%emt 0:00:35]} 7. d5 {[%emt 0:00:08]} e6 {[%emt 0:00:23]} 8. Be2 {[%emt 0:00:07]} exd5 {[%emt 0:00:18]} 9. cxd5 {[%emt 0:00:11]} Bg4 {[%emt 0:01:31]} 10. O-O {[%emt 0:01:32]} Nbd7 {[%emt 0:01:40]} 11. Re1 {[%emt 0:03:06]} Re8 {[%emt 0:01:51]} (11... Nh5 $11) 12. h3 {[%emt 0:03:18]} Bxf3 {[%emt 0:00:21]} 13. Bxf3 {[%emt 0:00:11]} Qa5 {[%emt 0:02:10]} 14. a4 {[%emt 0:13:59] A68: Modern Benoni: Four Pawns Attack without 9...Re8} (14. Be3 b5 15. a3 b4 16. axb4 Qxb4 17. Qc2 a5 18. Bf2 Rab8 19. Re2 Nh5 20. Bxh5 gxh5 21. Qd3 c4 22. Qf3 Nc5 23. Bxc5 Qxc5+ {1-0 (32) Cebalo,M (2520)-Cvitan,O (2538) Stari Mikanovci 2008}) 14... c4 {[%emt 0:06:41]} 15. Be3 {[%emt 0:06:34]} Nc5 {[%emt 0:04:25]} 16. Bxc5 {[%emt 0:03:56]} Qxc5+ {[%emt 0:01:40]} 17. Kh1 {[%emt 0:02:47]} Nd7 {[%emt 0:05:43]} 18. Qc2 {[%emt 0:02:10]} Qb4 {[%emt 0:07:32]} 19. Nb5 $146 {[%emt 0:08:38]} ({Predecessor:} 19. Be2 a6 20. a5 Nc5 21. Bf1 Rac8 {0-1 (40) Deatrick,A (2049)-Homa,S (2339) Cadillac 2011}) 19... Rec8 {[%emt 0:14:32]} ({Much worse is} 19... Bxb2 $6 20. Rab1 $11) ({Don't play} 19... Qxb2 $6 20. Qxb2 Bxb2 21. Rab1 $14) ({Black should try} 19... Red8 $17) 20. Bg4 {[%emt 0:00:45]} Rd8 $1 {[%emt 0:05:32]} 21. Bxd7 {[%emt 0:05:40]} Rxd7 {[%emt 0:00:57]} 22. Re2 {[%emt 0:01:43]} a6 {[%emt 0:05:45]} 23. Nc3 {[%emt 0:01:35]} Re8 {[%emt 0:01:22]} 24. Qd2 {[%emt 0:10:04]} Qa5 {[%emt 0:08:10]} 25. Qe1 {[%emt 0:01:34]} Rde7 {[%emt 0:01:49]} 26. g4 {[%emt 0:04:51]} (26. e5 $1 $11 {was the only way to keep the balance.}) 26... Bxc3 {[%emt 0:03:58]} 27. bxc3 $2 {[%emt 0:00:30]} (27. Qxc3 $17 Qxc3 28. bxc3) 27... Rxe4 {[%emt 0:02:29]} 28. Rxe4 {[%emt 0:00:14]} Qxd5 {[%emt 0:00:03]} 29. Rd1 {[%emt 0:02:01]} Qxe4+ {[%emt 0:00:33]} 30. Qxe4 {[%emt 0:00:08]} Rxe4 {[%emt 0:00:03]} 31. Kg2 {[%emt 0:02:02]} Re3 {[%emt 0:06:50]} 32. Rb1 {[%emt 0:01:09]} b5 {[%emt 0:07:19]} 33. axb5 {[%emt 0:00:00]} axb5 {[%emt 0:00:06]} 34. Rxb5 {[%emt 0:00:16]} Rxc3 {[%emt 0:00:05]} 35. Rd5 {[%emt 0:00:08]} Rd3 {[%emt 0:00:19]} 36. Rxd3 {[%emt 0:00:12]} cxd3 {[%emt 0:00:03]} 37. Kf3 {[%emt 0:00:01]} f5 {[%emt 0:00:45]} 38. gxf5 {[%emt 0:02:05]} gxf5 {[%emt 0:00:37]} 39. Ke3 {[%emt 0:00:07]} Kf7 {[%emt 0:06:10]} 40. Kxd3 {[%emt 0:00:08]} Ke6 {[%emt 0:00:44]} 41. Kd4 {[%emt 0:01:42]} d5 {[%emt 0:00:29]} 42. Kc5 {[%emt 0:01:25]} h6 {[%emt 0:00:35]} 43. h4 {[%emt 0:00:26]} h5 {[%emt 0:00:02]} 44. Kb4 {[%emt 0:01:37]} Kd6 {[%emt 0:00:15]} 45. Kb5 {[%emt 0:00:20]} d4 {[%emt 0:00:14]} 46. Kc4 {[%emt 0:00:12]} d3 {[%emt 0:00:05]} 47. Kc3 {[%emt 0:00:38]} Kc5 {[%emt 0:00:06]} 48. Kxd3 {[%emt 0:00:46]} Kd5 {[%emt 0:00:05]} 49. Ke3 {[%emt 0:00:21]} Kc4 {[%emt 0:00:31]} 50. Kf3 {[%emt 0:00:17]} Kd4 {[%emt 0:07:15]} 0-1

[Event "Israeli Open Championship 2019"]
[Site "Jerusalem"]
[Date "2019.12.18"]
[Round "6.3"]
[White "Lahav, Michal"]
[Black "Iliaguev, Nisim"]
[Result "1-0"]
[ECO "B11"]
[WhiteElo "2244"]
[BlackElo "2275"]
[Annotator "NA"]
[PlyCount "99"]
[EventDate "2019.12.12"]
[EventType "swiss"]
[EventCountry "ISR"]
[SourceTitle "playchess.com"]
[Source "ChessBase"]
[SourceQuality "1"]
[TimeControl "5400+30"]

1. e4 {[%emt 0:00:00]} c6 {[%emt 0:00:06]} 2. Nc3 {[%emt 0:00:00]} d5 {[%emt 0:00:05]} 3. Nf3 {[%emt 0:00:00]} dxe4 {[%emt 0:00:06]} 4. Nxe4 {[%emt 0:00:06]} Nf6 {[%emt 0:00:05]} 5. Qe2 {[%emt 0:00:21]} Nxe4 {[%emt 0:00:12]} 6. Qxe4 {[%emt 0:00:04]} Qa5 {[%emt 0:00:13] B11: Caro-Kann: Two Knights Variation} 7. c3 $146 {[%emt 0:16:15]} (7. Bd3 Na6 8. Qe5 Qxe5+ 9. Nxe5 Nb4 10. Be4 f6 11. c3 Nd5 12. Nf3 a5 13. d4 a4 14. Bd2 {½-½ (41) Adams,M (2703)-Howell,D (2696) London 2018}) 7... Qf5 {[%emt 0:03:48]} 8. Qe3 {[%emt 0:02:44]} Qe6 {[%emt 0:06:48]} 9. d4 {[%emt 0:00:20]} Qxe3+ {[%emt 0:00:06]} 10. Bxe3 {[%emt 0:04:23]} Bf5 {[%emt 0:02:29]} 11. Bc4 {[%emt 0:02:25]} e6 {[%emt 0:00:56]} 12. Bf4 {[%emt 0:00:52]} Nd7 {[%emt 0:03:00]} 13. O-O {[%emt 0:04:39]} Be7 {[%emt 0:01:48]} 14. Rfe1 {[%emt 0:00:12]} O-O {[%emt 0:02:05]} 15. Bb3 {[%emt 0:01:06]} Bf6 {[%emt 0:07:58]} 16. h3 {[%emt 0:01:16]} Rac8 {[%emt 0:05:04]} 17. Ne5 {[%emt 0:18:12]} Nxe5 {[%emt 0:01:30]} 18. Bxe5 {[%emt 0:00:18]} Bxe5 {[%emt 0:00:16]} 19. Rxe5 {[%emt 0:00:37]} Rfd8 {[%emt 0:00:22]} 20. Rd1 {[%emt 0:05:32]} Rc7 {[%emt 0:02:14]} 21. g4 {[%emt 0:06:56]} Bg6 {[%emt 0:00:25]} 22. Kg2 {[%emt 0:00:03]} Kf8 {[%emt 0:01:17]} 23. Kg3 {[%emt 0:00:06]} b6 {[%emt 0:01:25]} 24. f4 {[%emt 0:05:08]} h6 {[%emt 0:01:06]} 25. Ree1 {[%emt 0:07:07]} Rcd7 {[%emt 0:01:11]} 26. Kf3 {[%emt 0:00:08]} Rd6 {[%emt 0:01:00]} 27. Kf2 {[%emt 0:00:26]} a5 {[%emt 0:02:26]} 28. a3 {[%emt 0:02:06]} c5 {[%emt 0:02:31]} 29. dxc5 {[%emt 0:02:53]} bxc5 {[%emt 0:00:10]} 30. Rxd6 {[%emt 0:00:09]} Rxd6 {[%emt 0:00:01]} 31. Bc4 {[%emt 0:00:03]} Rb6 {[%emt 0:13:37]} 32. Re2 {[%emt 0:00:16]} Bh7 {[%emt 0:00:10]} 33. Kf3 {[%emt 0:06:45]} Ke7 {[%emt 0:05:14]} 34. a4 {[%emt 0:04:38]} Bb1 {[%emt 0:04:18]} 35. Re5 $11 {[%emt 0:05:21]} Rc6 {[%emt 0:20:10]} 36. Re2 {[%emt 0:00:12]} f6 {[%emt 0:02:19]} 37. Ke3 {[%emt 0:06:13]} Rd6 {[%emt 0:02:13]} 38. Re1 {[%emt 0:00:33]} Bc2 {[%emt 0:01:42]} 39. b3 {[%emt 0:00:26]} Rd1 {[%emt 0:03:00]} 40. Re2 {[%emt 0:00:00]} Bb1 {[%emt 0:01:52]} 41. Kf2 {[%emt 0:00:16]} Rd6 {[%emt 0:00:22]} 42. b4 {[%emt 0:01:19]} cxb4 {[%emt 0:00:39]} 43. cxb4 {[%emt 0:00:01]} axb4 {[%emt 0:00:29]} 44. Rb2 {[%emt 0:00:01]} Rd4 {[%emt 0:02:09]} 45. Rxb4 {[%emt 0:00:42]} Rxf4+ {[%emt 0:01:15]} 46. Kg3 {[%emt 0:00:01]} g5 {[%emt 0:00:44]} 47. a5 {[%emt 0:00:41]} Be4 {[%emt 0:00:44]} 48. Be2 {[%emt 0:00:55]} Bf3 {[%emt 0:01:01]} 49. Rxf4 {[%emt 0:00:05]} Bxe2 {[%emt 0:00:15]} 50. Rb4 {[%emt 0:00:15]} 1-0

[Event "Israeli Open Championship 2019"]
[Site "Jerusalem"]
[Date "2019.12.18"]
[Round "6.4"]
[White "Postny, Evgeny"]
[Black "Flom, Gabriel"]
[Result "1-0"]
[ECO "E08"]
[WhiteElo "2605"]
[BlackElo "2506"]
[Annotator "ChessBase"]
[PlyCount "129"]
[EventDate "2019.12.12"]
[EventType "swiss"]
[EventCountry "ISR"]
[SourceTitle "playchess.com"]
[Source "ChessBase"]
[SourceQuality "1"]
[TimeControl "5400+30"]

1. d4 {[%emt 0:01:04]} Nf6 {[%emt 0:08:38]} 2. Nf3 {[%emt 0:00:10]} d5 {[%emt 0:01:37]} 3. c4 {[%emt 0:00:09]} e6 {[%emt 0:00:02]} 4. g3 {[%emt 0:00:21]} Bb4+ {[%emt 0:01:19]} 5. Bd2 {[%emt 0:00:10]} Be7 {[%emt 0:00:04]} 6. Bg2 {[%emt 0:00:06]} O-O {[%emt 0:00:03]} 7. O-O {[%emt 0:00:12]} Nbd7 {[%emt 0:00:01]} 8. Qc2 {[%emt 0:00:22]} Ne4 {[%emt 0:01:40]} 9. Bf4 {[%emt 0:04:43]} c6 {[%emt 0:00:49]} 10. Nc3 {[%emt 0:00:19]} g5 {[%emt 0:00:03]} 11. Bc1 {[%emt 0:00:48]} f5 {[%emt 0:00:05]} 12. e3 {[%emt 0:03:20]} g4 {[%emt 0:06:54]} 13. Ne1 {[%emt 0:04:17]} Bd6 {[%emt 0:00:44]} 14. Ne2 {[%emt 0:04:30]} Rf7 {[%emt 0:03:27]} 15. Nd3 {[%emt 0:02:18]} h5 {[%emt 0:04:01]} 16. Nef4 {[%emt 0:07:29]} Ndf6 {[%emt 0:00:10]} 17. b3 {[%emt 1:08:12]} h4 {[%emt 0:07:52]} 18. Bb2 {[%emt 0:00:00]} Rh7 {[%emt 0:03:59]} 19. Rfd1 {[%emt 0:00:00]} Ng5 {[%emt 0:14:47]} 20. Ne5 {[%emt 0:00:00]} Nfe4 {[%emt 0:00:29]} 21. Kf1 {[%emt 0:00:00]} Bxe5 {[%emt 0:12:44]} 22. dxe5 {[%emt 0:00:00]} b6 {[%emt 0:00:06]} 23. Ke2 {[%emt 0:00:00]} Ba6 {[%emt 0:04:12]} 24. a4 {[%emt 0:00:00]} hxg3 {[%emt 0:02:06]} 25. hxg3 {[%emt 0:00:00]} Rh2 {[%emt 0:00:06]} 26. Rd4 {[%emt 0:00:00]} Qe7 {[%emt 0:04:00]} 27. Rh1 {[%emt 0:00:00]} Rxh1 {[%emt 0:05:31]} 28. Bxh1 {[%emt 0:00:00]} Kf7 {[%emt 0:00:35]} 29. Kd1 {[%emt 0:01:08]} Rh8 {[%emt 0:03:10]} 30. Bxe4 {[%emt 0:00:30]} Nxe4 {[%emt 0:00:03]} 31. Kc1 {[%emt 0:00:11]} Rh1+ {[%emt 0:02:01]} 32. Rd1 {[%emt 0:00:06]} Rh2 {[%emt 0:00:08]} 33. Kb1 {[%emt 0:02:03]} Rxf2 {[%emt 0:01:10]} 34. Qc1 {[%emt 0:00:06]} dxc4 {[%emt 0:04:25]} 35. bxc4 {[%emt 0:00:09]} Rh2 {[%emt 0:03:26]} 36. Rh1 {[%emt 0:01:54]} Rxh1 {[%emt 0:03:36]} 37. Qxh1 {[%emt 0:00:03]} Nxg3 {[%emt 0:01:43]} 38. Qh7+ {[%emt 0:01:44]} Ke8 {[%emt 0:00:01]} 39. Qg8+ {[%emt 0:00:08]} Kd7 {[%emt 0:00:03]} 40. Ng6 {[%emt 0:01:32]} Qe8 {[%emt 0:00:39]} 41. Qg7+ {[%emt 0:00:18]} Kc8 {[%emt 0:00:12]} 42. Qxa7 {[%emt 0:01:50]} Qxg6 {[%emt 0:00:42]} 43. Qxa6+ {[%emt 0:00:05]} Kd7 {[%emt 0:00:02]} 44. Qb7+ {[%emt 0:00:12]} Ke8 {[%emt 0:00:00]} 45. Qxc6+ {[%emt 0:00:36]} Kf7 {[%emt 0:00:01]} 46. Qd7+ {[%emt 0:00:51]} Kg8 {[%emt 0:00:00]} 47. Qd8+ {[%emt 0:00:25]} Kh7 {[%emt 0:00:02]} 48. Qe7+ {[%emt 0:00:36]} Kh6 {[%emt 0:00:23]} 49. c5 {[%emt 0:00:48]} bxc5 {[%emt 0:00:49]} 50. a5 {[%emt 0:00:04]} f4+ {[%emt 0:00:24]} 51. Ka2 {[%emt 0:00:04]} Nf5 {[%emt 0:00:55]} 52. Qf8+ {[%emt 0:00:19]} Qg7 {[%emt 0:00:06]} 53. Qxg7+ {[%emt 0:01:02]} Kxg7 {[%emt 0:00:19]} 54. exf4 {[%emt 0:00:07]} Ne7 {[%emt 0:02:14]} 55. Ba3 {[%emt 0:01:11]} Nc6 {[%emt 0:00:17]} 56. a6 {[%emt 0:00:05]} c4 {[%emt 0:01:21]} 57. Kb2 {[%emt 0:00:24]} g3 {[%emt 0:03:32]} 58. Bc5 {[%emt 0:00:57]} g2 {[%emt 0:00:28]} 59. a7 {[%emt 0:00:52]} Nxa7 {[%emt 0:00:14]} 60. Bxa7 {[%emt 0:00:05]} Kg6 {[%emt 0:00:04]} 61. Bg1 {[%emt 0:00:10]} Kf5 {[%emt 0:00:14]} 62. Bh2 {[%emt 0:00:08]} Ke4 {[%emt 0:00:21]} 63. Kc3 {[%emt 0:00:09]} Kd5 {[%emt 0:00:07]} 64. Bg1 {[%emt 0:00:15]} Ke4 {[%emt 0:00:00]} 65. Kxc4 {[%emt 0:02:53] Kd5+} 1-0

[Event "Israeli Open Championship 2019"]
[Site "Jerusalem"]
[Date "2019.12.18"]
[Round "6.5"]
[White "Baron, Tal"]
[Black "Shtemler, Lavi"]
[Result "1-0"]
[ECO "E11"]
[WhiteElo "2541"]
[BlackElo "2181"]
[Annotator "ChessBase"]
[PlyCount "78"]
[EventDate "2019.12.12"]
[EventType "swiss"]
[EventCountry "ISR"]
[SourceTitle "playchess.com"]
[Source "ChessBase"]
[SourceQuality "1"]
[TimeControl "5400+30"]

1. d4 {[%emt 0:02:00]} Nf6 {[%emt 0:00:00]} 2. c4 {[%emt 0:00:14]} e6 {[%emt 0:00:00]} 3. Nf3 {[%emt 0:02:46]} Bb4+ {[%emt 0:00:00]} 4. Nbd2 {[%emt 0:00:20]} O-O {[%emt 0:00:23]} 5. a3 {[%emt 0:00:05]} Be7 {[%emt 0:00:04]} 6. Qc2 {[%emt 0:03:46]} d5 {[%emt 0:03:10]} 7. g3 {[%emt 0:00:16]} b6 {[%emt 0:11:56]} 8. Bg2 {[%emt 0:03:11]} Bb7 {[%emt 0:03:45]} 9. O-O {[%emt 0:02:04]} Nbd7 {[%emt 0:01:47]} 10. b4 {[%emt 0:04:26]} c5 {[%emt 0:04:50]} 11. cxd5 {[%emt 0:00:54]} exd5 {[%emt 0:01:24]} 12. bxc5 {[%emt 0:00:36]} bxc5 {[%emt 0:01:36]} 13. Rb1 {[%emt 0:01:27]} Ba6 {[%emt 0:05:10]} 14. Re1 {[%emt 0:07:11]} Rb8 {[%emt 0:05:58]} 15. Bb2 {[%emt 0:02:32]} c4 {[%emt 0:02:52]} 16. Ne5 {[%emt 0:00:09]} Qc7 {[%emt 0:09:25]} 17. e4 {[%emt 0:06:34]} Rfc8 {[%emt 0:14:54]} 18. exd5 {[%emt 0:03:00]} Rxb2 {[%emt 0:10:10]} 19. Rxb2 {[%emt 0:02:53]} c3 {[%emt 0:03:31]} 20. Nc6 {[%emt 0:01:14]} cxb2 {[%emt 0:00:13]} 21. Rxe7 {[%emt 0:01:33]} Qd6 {[%emt 0:04:07]} 22. Qxb2 {[%emt 0:01:10]} Nxd5 {[%emt 0:02:55]} 23. Bxd5 {[%emt 0:09:59]} Qxd5 {[%emt 0:00:36]} 24. Nb4 {[%emt 0:00:02]} Qd6 {[%emt 0:01:00]} 25. Rxd7 {[%emt 0:00:13]} Qxd7 {[%emt 0:00:05]} 26. Nxa6 {[%emt 0:00:07]} Qe6 {[%emt 0:00:40]} 27. Nc5 {[%emt 0:00:31]} Qe1+ {[%emt 0:00:12]} 28. Kg2 {[%emt 0:00:16]} h6 {[%emt 0:02:20]} 29. Qb7 {[%emt 0:01:27]} Re8 {[%emt 0:03:26]} 30. Nf3 {[%emt 0:00:07]} Qe7 {[%emt 0:01:31]} 31. Qxe7 {[%emt 0:02:22]} Rxe7 {[%emt 0:00:00]} 32. Ne5 {[%emt 0:00:43]} f6 {[%emt 0:00:49]} 33. Nc6 {[%emt 0:01:28]} Rc7 {[%emt 0:00:21]} 34. d5 {[%emt 0:00:20]} Kf7 {[%emt 0:00:20]} 35. Kf3 {[%emt 0:00:20]} f5 {[%emt 0:00:53]} 36. Ke3 {[%emt 0:00:33]} Kf6 {[%emt 0:00:33]} 37. Kd4 {[%emt 0:00:12]} Rc8 {[%emt 0:00:13]} 38. Nxa7 {[%emt 0:00:24]} Ra8 {[%emt 0:00:16]} 39. Nb5 {[%emt 0:00:04]} Ke7 {[%emt 0:08:05] Ke4} 1-0

[Event "Israeli Open Championship 2019"]
[Site "Jerusalem"]
[Date "2019.12.18"]
[Round "6.7"]
[White "Gorodetzky, Matan"]
[Black "Dvoirys, Semen I."]
[Result "1/2-1/2"]
[ECO "B31"]
[WhiteElo "2284"]
[BlackElo "2467"]
[Annotator "RC"]
[PlyCount "40"]
[EventDate "2019.12.12"]
[EventType "swiss"]
[EventCountry "ISR"]
[SourceTitle "playchess.com"]
[Source "ChessBase"]
[SourceQuality "1"]
[TimeControl "5400+30"]

1. e4 {[%emt 0:00:00]} c5 {[%emt 0:00:00]} 2. Nf3 {[%emt 0:00:18]} Nc6 {[%emt 0:00:23]} 3. Bb5 {[%emt 0:00:23]} g6 {[%emt 0:00:20]} 4. O-O {[%emt 0:01:02]} Bg7 {[%emt 0:00:05]} 5. Re1 {[%emt 0:00:38]} Nf6 {[%emt 0:00:45]} 6. c3 {[%emt 0:00:59]} a6 {[%emt 0:00:28]} 7. Bf1 {[%emt 0:03:03]} d6 {[%emt 0:12:57]} 8. h3 {[%emt 0:02:36]} e5 {[%emt 0:00:15]} 9. d4 {[%emt 0:14:55]} O-O {[%emt 0:06:25]} 10. dxc5 {[%emt 0:15:24]} dxc5 {[%emt 0:00:08]} 11. Qxd8 {[%emt 0:00:31]} Rxd8 {[%emt 0:00:06]} 12. a4 {[%emt 0:00:19]} Ne8 {[%emt 0:13:50]} 13. Be3 {[%emt 0:04:50]} b6 {[%emt 0:02:45]} 14. Nbd2 {[%emt 0:02:55]} Rb8 {[%emt 0:05:49]} 15. Red1 {[%emt 0:12:30]} Bf8 {[%emt 0:09:05]} 16. Bc4 {[%emt 0:00:40]} Kg7 {[%emt 0:00:14]} 17. Bd5 {[%emt 0:03:52]} Ne7 {[%emt 0:00:10]} 18. Bb3 {[%emt 0:01:05]} Nc6 {[%emt 0:00:49]} 19. Bd5 {[%emt 0:00:11]} Ne7 {[%emt 0:00:10]} 20. Bb3 {[%emt 0:02:21]} Nc6 {[%emt 0:07:18]} 1/2-1/2